bitfinex/quotes_SOLUSD_20260311
["timestamp","ask_amount","ask_price","bid_price","bid_amount"]
[1773254979063,2.92,87.654,87.64,2.9215471]
[1773254979259,0.1,87.66,87.641,0.62352837]
[1773254979465,1.41780682,87.672,87.64,2.9215471]
[1773254979675,1.41780682,87.672,87.627,0.62352837]
[1773254979676,1.41780682,87.669,87.63,2.9215471]
[1773254979983,1.41780682,87.667,87.64,2.9215471]
[1773254980479,1.41780682,87.667,87.605,0.14216157]
[1773254980480,1.41780682,87.665,87.62,2.9215471]
[1773254980695,1.41780682,87.657,87.621,11.41278917]
[1773254980987,1.41780682,87.655,87.621,11.41278917]
[1773254981187,1.41780682,87.655,87.62,2.9215471]
[1773254981371,1.52365744,87.654,87.62,2.9215471]
[1773254981570,1.52365744,87.652,87.62,2.9215471]
[1773254982383,1.52365744,87.65,87.62,2.9215471]
[1773254982576,1.52365744,87.65,87.63,2.9215471]
[1773254984082,1.52365744,87.65,87.62,2.9215471]
[1773254984470,11.40914328,87.649,87.621,11.41278917]
[1773254984659,1.52365744,87.648,87.62,2.9215471]
[1773254985485,1.52365744,87.648,87.62,14.3343629]
[1773254985678,1.52365744,87.648,87.63,2.9215471]
[1773254986888,11.40940363,87.647,87.63,2.9215471]
[1773254987261,1.52365744,87.646,87.596,0.5989106]
[1773254987467,1.52365744,87.645,87.611,0.62392552]
[1773254987874,1.52365744,87.645,87.62,2.9215471]
[1773254988068,2.92,87.653,87.631,0.62396715]
[1773254988272,11.40758147,87.661,87.64,2.9215471]
[1773254988567,1.52365744,87.667,87.64,2.9215471]
[1773254988882,12.93058829,87.666,87.64,2.9215471]
[1773254990170,1.46856952,87.665,87.64,2.9215471]
[1773254990474,1.46856952,87.665,87.65,2.9215471]
[1773254991282,1.52911982,87.679,87.66,2.9215471]
[1773254991589,1.52911982,87.679,87.639,2.92]
[1773254991590,1.52911982,87.679,87.65,2.9215471]
[1773254991985,1.52911982,87.678,87.64,2.9215471]
[1773254992187,11.40523956,87.679,87.63,2.9215471]
[1773254992188,2.9215471,87.67,87.63,2.9215471]
[1773254992385,1.52911982,87.669,87.64,2.9215471]
[1773254993188,1.52911982,87.667,87.64,2.9215471]
[1773254993380,1.52911982,87.667,87.641,11.41018473]
[1773254993579,1.52911982,87.667,87.64,2.9215471]
[1773254993789,1.52911982,87.667,87.633,11.41113104]
[1773254993790,1.52911982,87.666,87.633,11.41113104]
[1773254994183,1.52911982,87.666,87.63,2.9215471]
[1773254994384,1.52911982,87.666,87.631,11.4114868]
[1773254994771,1.52911982,87.666,87.63,2.9215471]
[1773254994984,1.52911982,87.666,87.64,2.9215471]
[1773254995294,1.52911982,87.666,87.65,2.9215471]
[1773254995594,11.40706097,87.665,87.65,2.9215471]
[1773254996891,0.82837376,87.678,87.65,2.9215471]
[1773254997082,7.09294823,87.702,87.67,2.9215471]
[1773254997083,1.52911982,87.7,87.67,2.9215471]
[1773254997286,1.52911982,87.698,87.67,2.9215471]
[1773254997989,1.52911982,87.698,87.67,14.32790851]
[1773254999992,1.52911982,87.698,87.642,2.92]
[1773254999993,1.52911982,87.696,87.652,39.93063477]
[1773255000172,1.52911982,87.696,87.67,2.9215471]
[1773255000374,1.52911982,87.696,87.66,2.9215471]
[1773255000574,1.52911982,87.696,87.67,2.9215471]
[1773255000786,1.52911982,87.719,87.69,2.9215471]
[1773255000993,1.52911982,87.719,87.655,3.69383402]
[1773255000994,11.3992178,87.726,87.7,2.9215471]
[1773255001179,11.3996777,87.722,87.7,2.9215471]
[1773255001586,12.92813714,87.727,87.7,2.9215471]
[1773255001778,11.3999088,87.72,87.675,2.92]
[1773255001981,11.3999088,87.72,87.7,2.9215471]
[1773255002180,1.52911982,87.719,87.7,2.9215471]
[1773255002977,1.52911982,87.719,87.69,2.9215471]
[1773255003180,1.52911982,87.717,87.663,28.51802006]
[1773255003379,1.52911982,87.709,87.68,2.9215471]
[1773255003793,1.52911982,87.709,87.663,28.51802006]
[1773255003996,1.52911982,87.699,87.67,2.9215471]
[1773255004195,39.8996808,87.72,87.65,2.9215471]
[1773255004196,1.52911982,87.697,87.65,2.9215471]
[1773255004399,1.52911982,87.697,87.66,2.9215471]
[1773255004894,1.52911982,87.689,87.65,2.9215471]
[1773255005092,1.52911982,87.687,87.65,2.9215471]
[1773255006006,1.52911982,87.703,87.68,2.9215471]
[1773255006309,1.52911982,87.697,87.66,2.9215471]
[1773255008095,1.52911982,87.695,87.66,2.9215471]
[1773255009793,11.4032887,87.694,87.661,11.40758147]
[1773255009996,1.52911982,87.693,87.661,11.40758147]
[1773255010606,1.52911982,87.689,87.636,2.92]
[1773255010905,39.91151047,87.694,87.64,2.9215471]
[1773255010906,1.52911982,87.677,87.64,2.9215471]
[1773255011494,1.52911982,87.669,87.632,11.41122998]
[1773255011798,1.52911982,87.669,87.63,2.9215471]
[1773255011799,1.52911982,87.669,87.64,2.9215471]
[1773255012210,1.52911982,87.667,87.64,2.9215471]
[1773255012411,1.52911982,87.667,87.62,1.14129194]
[1773255012412,1.52911982,87.659,87.62,2.9215471]
[1773255012705,1.52911982,87.657,87.62,2.9215471]
[1773255012911,1.52911982,87.657,87.63,2.9215471]
[1773255013112,1.52911982,87.657,87.62,2.9215471]
[1773255014508,1.52911982,87.655,87.62,2.9215471]
[1773255015011,1.52911982,87.655,87.621,11.41278917]
[1773255015206,1.52911982,87.655,87.63,2.9215471]
[1773255015411,1.52911982,87.655,87.621,11.41278917]
[1773255016403,11.40849248,87.654,87.63,2.9215471]
[1773255016796,1.52911982,87.653,87.62,2.9215471]
[1773255017908,11.40849248,87.654,87.63,2.9215471]
[1773255018114,11.40706097,87.665,87.64,2.9215471]
[1773255018303,1.52911982,87.664,87.64,2.9215471]
[1773255018510,1.52911982,87.664,87.641,11.41018473]
[1773255018703,2.92,87.669,87.65,2.9215471]
[1773255018901,11.40667062,87.668,87.65,2.9215471]
[1773255019104,1.52911982,87.667,87.64,2.9215471]
[1773255021316,1.52911982,87.667,87.617,3.69383402]
[1773255021317,1.52911982,87.689,87.66,2.9215471]
[1773255021497,1.52911982,87.689,87.67,2.9215471]
[1773255022419,1.52911982,87.713,87.68,2.9215471]
[1773255022714,1.52911982,87.713,87.65,2.9215471]
[1773255022715,0.14216157,87.708,87.69,2.9215471]
[1773255023009,1.52911982,87.707,87.69,2.9215471]
[1773255023597,11.4017285,87.706,87.69,2.9215471]
[1773255023798,1.52911982,87.705,87.69,2.9215471]
[1773255024424,1.52911982,87.705,87.674,11.40589]
[1773255024598,1.52911982,87.705,87.69,2.9215471]
[1773255025708,1.52911982,87.705,87.69,2.91240124]
[1773255025901,11.4019885,87.704,87.69,2.91240124]
[1773255026096,11.4019885,87.704,87.65,4.05330255]
[1773255026097,1.52911982,87.703,87.68,2.91240124]
[1773255026701,1.52911982,87.703,87.67,2.91240124]
[1773255026901,1.52911982,87.703,87.68,2.91240124]
[1773255027829,1.52911982,87.701,87.67,2.91240124]
[1773255028318,1.52911982,87.701,87.68,2.91240124]
[1773255028513,1.52911982,87.701,87.654,39.92972368]
[1773255028697,1.52911982,87.701,87.67,2.91240124]
[1773255029814,1.52911982,87.699,87.671,11.40628029]
[1773255030313,1.52911982,87.699,87.67,2.91240124]
[1773255030522,1.52911982,87.699,87.671,11.40628029]
[1773255030700,1.52911982,87.699,87.67,2.91240124]
[1773255031502,1.52911982,87.699,87.67,14.31871004]
[1773255032920,1.52911982,87.697,87.67,14.31871004]
[1773255033298,1.52911982,87.697,87.68,2.91240124]
[1773255033502,1.52911982,87.72,87.67,11.4063088]
[1773255033713,11.40003876,87.719,87.69,2.91240124]
[1773255033910,1.52911982,87.718,87.69,2.91240124]
[1773255034918,11.40029868,87.717,87.691,11.40367882]
[1773255036127,12.9294185,87.717,87.691,11.40367882]
[1773255036514,11.40055862,87.715,87.691,11.40367882]
[1773255036911,1.52911982,87.715,87.691,11.40367882]
[1773255037224,1.52911982,87.715,87.676,11.40562981]
[1773255037424,1.52911982,87.715,87.68,2.91240124]
[1773255037631,1.52911982,87.719,87.69,2.91240124]
[1773255038850,1.52911982,87.745,87.71,2.91240124]
[1773255039009,1.52911982,87.745,87.72,2.91240124]
[1773255039211,1.52911982,87.739,87.691,39.91287588]
[1773255039411,1.52911982,87.737,87.7,2.91240124]
[1773255040833,3.04216157,87.738,87.7,2.91240124]
[1773255040834,1.52911982,87.729,87.7,2.91240124]
[1773255041032,1.52911982,87.727,87.692,11.40354878]
[1773255041224,1.52911982,87.727,87.69,2.91240124]
[1773255041225,2.91240124,87.71,87.682,11.40484854]
[1773255041430,2.91240124,87.75,87.7,2.91240124]
[1773255041634,1.52911982,87.749,87.71,2.91240124]
[1773255041839,1.52911982,87.747,87.71,2.91240124]
[1773255042424,1.52911982,87.747,87.689,1.14039389]
[1773255042425,0.14216157,87.742,87.689,1.14039389]
[1773255042725,1.52911982,87.735,87.701,11.40237853]
[1773255042922,1.52911982,87.734,87.701,11.40237853]
[1773255044142,1.52911982,87.734,87.7,14.31489214]
[1773255045042,1.52911982,87.732,87.7,14.31489214]
[1773255045830,1.52911982,87.732,87.7,11.4024909]
[1773255046324,1.52911982,87.732,87.7,14.31489214]
[1773255047822,11.39847944,87.731,87.71,2.91240124]
[1773255048043,1.52911982,87.73,87.7,14.31489214]
[1773255050250,1.52911982,87.728,87.7,14.31489214]
[1773255051338,1.52911982,87.726,87.7,14.31489214]
[1773255052272,1.52911982,87.726,87.695,11.40304218]
[1773255052450,2.9,87.739,87.7,2.91240124]
[1773255052451,11.39855975,87.731,87.7,2.91240124]
[1773255052637,11.39855975,87.731,87.71,2.91240124]
[1773255052952,1.52911982,87.73,87.71,2.91240124]
[1773255053853,1.52911982,87.728,87.71,2.91240124]
[1773255055451,11.39705044,87.742,87.71,2.91240124]
[1773255055647,11.39656091,87.746,87.72,2.91240124]
[1773255056033,12.92568073,87.746,87.721,11.39977884]
[1773255056646,1.52911982,87.745,87.721,11.39977884]
[1773255057874,1.52911982,87.745,87.72,2.91240124]
[1773255058473,11.39614126,87.749,87.721,11.39977884]
[1773255058673,11.39614126,87.749,87.73,2.91240124]
[1773255059183,0.1,87.76,87.74,2.91240124]
[1773255059384,1.52911982,87.784,87.74,2.91240124]
[1773255059573,0.1,87.85,87.74,2.91240124]
[1773255059574,1.52911982,87.779,87.74,2.91240124]
[1773255059763,1.52911982,87.779,87.75,2.91240124]
[1773255059764,1.52911982,87.778,87.75,2.91240124]
[1773255059964,1.52911982,87.778,87.722,2.9]
[1773255060169,1.52911982,87.769,87.73,2.91240124]
[1773255060369,1.52911982,87.778,87.74,2.91240124]
[1773255060574,1.52911982,87.778,87.75,2.91240124]
[1773255061602,0.1,87.78,87.75,2.91240124]
[1773255061778,0.1,87.78,87.76,2.91240124]
[1773255062380,11.38704274,87.82,87.77,2.91240124]
[1773255062579,0.1,87.85,87.761,2.9]
[1773255062580,1.52911982,87.822,87.8,2.91240124]
[1773255062767,1.52911982,87.822,87.774,3.69383402]
[1773255062963,1.52911982,87.822,87.8,2.91240124]
[1773255063887,11.38705747,87.819,87.8,2.91240124]
[1773255064097,1.52911982,87.818,87.8,2.91240124]
[1773255065272,1.52911982,87.826,87.8,2.91240124]
[1773255065474,1.52911982,87.84,87.82,2.91240124]
[1773255065873,0.1,87.85,87.83,2.91240124]
[1773255066068,0.1,87.87,87.841,1.50303755]
[1773255066278,11.3805779,87.869,87.86,2.91240124]
[1773255066492,0.1,87.87,87.86,2.91240124]
[1773255066684,0.2664318,87.893,87.819,3.69383402]
[1773255066685,0.2664318,87.893,87.88,2.91240124]
[1773255067193,11.37759978,87.892,87.87,2.91240124]
[1773255067397,39.82159923,87.892,87.86,2.91240124]
[1773255067596,39.82159923,87.892,87.86,7.25219207]
[1773255067989,1.50829294,87.889,87.86,7.25219207]
[1773255068187,1.50829294,87.889,87.851,1.50303755]
[1773255068392,1.50829294,87.887,87.86,7.25219207]
[1773255069889,1.77472474,87.893,87.87,7.25219207]
[1773255070084,11.37759978,87.892,87.87,7.25219207]
[1773255070283,11.37759978,87.892,87.832,3.69383402]
[1773255070284,0.2664318,87.893,87.88,7.25219207]
[1773255070594,2.9,87.906,87.88,7.25219207]
[1773255070796,2.9,87.906,87.875,1.50303755]
[1773255070797,1.50829294,87.904,87.87,7.25219207]
[1773255070999,1.50829294,87.904,87.88,7.25219207]
[1773255071491,1.50829294,87.904,87.89,7.25219207]
[1773255071695,1.50829294,87.904,87.88,7.25219207]
[1773255072198,11.37586777,87.906,87.881,11.3790239]
[1773255072374,11.37586777,87.906,87.878,1.50303755]
[1773255072577,1.50829294,87.905,87.88,7.25219207]
[1773255074289,1.50829294,87.905,87.881,11.3790239]
[1773255074490,1.50829294,87.903,87.88,7.25219207]
[1773255074694,1.50829294,87.903,87.86,7.25219207]
[1773255074891,1.50829294,87.903,87.87,7.25219207]
[1773255075397,39.81616308,87.904,87.851,1.50303755]
[1773255075398,1.50829294,87.887,87.851,1.50303755]
[1773255075579,1.50829294,87.887,87.86,8.75522962]
[1773255075782,1.50829294,87.896,87.87,7.25219207]
[1773255075982,1.50829294,87.896,87.861,1.50303755]
[1773255076403,1.50829294,87.889,87.86,7.25219207]
[1773255076631,0.14216157,87.888,87.861,1.50303755]
[1773255076904,11.37721144,87.895,87.861,1.50303755]
[1773255076905,1.50829294,87.894,87.87,7.25219207]
[1773255077086,1.50829294,87.894,87.861,1.50303755]
[1773255077403,1.50829294,87.894,87.87,7.25219207]
[1773255078401,1.50829294,87.892,87.861,1.50303755]
[1773255078789,2.9,87.904,87.881,1.50303755]
[1773255078989,2.9,87.904,87.89,7.25219207]
[1773255079188,28.43579155,87.918,87.89,7.25219207]
[1773255079189,11.51652602,87.917,87.89,7.25219207]
[1773255079384,11.37436445,87.917,87.89,7.25219207]
[1773255079584,11.37436445,87.917,87.862,1.13814846]
[1773255079585,12.88097575,87.93,87.9,7.25219207]
[1773255079807,12.88097575,87.93,87.9,8.75522962]
[1773255080007,12.88097575,87.93,87.91,7.25219207]
[1773255080190,1.41837018,87.953,87.921,1.46847223]
[1773255080508,24.09891441,87.952,87.923,1.46847223]
[1773255080690,24.09891441,87.952,87.93,7.25219207]
[1773255080891,12.72907631,87.952,87.93,7.25219207]
[1773255081201,12.72907631,87.952,87.924,11.37345889]
[1773255081202,12.72907631,87.952,87.941,1.46847223]
[1773255081409,1.41837018,87.999,87.941,1.46847223]
[1773255081800,1.41837018,87.989,87.95,7.25219207]
[1773255082200,2.9,88.0,87.961,1.46847223]
[1773255082201,1.41837018,87.999,87.961,1.46847223]
[1773255082400,1.41837018,87.997,87.961,1.46847223]
[1773255082704,1.41837018,87.997,87.97,7.25219207]
[1773255082912,7.25219207,87.99,87.95,7.25219207]
[1773255083114,1.41837018,87.989,87.95,7.25219207]
[1773255083616,1.41837018,87.987,87.95,7.25219207]
[1773255084488,1.41837018,87.985,87.95,7.25219207]
[1773255084689,1.41837018,87.979,87.94,8.7206643]
[1773255085011,1.41837018,87.979,87.941,1.46847223]
[1773255085310,1.41837018,87.979,87.95,7.25219207]
[1773255086316,1.41837018,87.979,87.941,1.46847223]
[1773255086510,1.41837018,87.979,87.95,7.25219207]
[1773255086693,1.41837018,87.977,87.95,7.25219207]
[1773255086893,1.41837018,87.977,87.921,2.9]
[1773255086894,1.41837018,87.969,87.923,1.46847223]
[1773255087109,1.41837018,87.969,87.93,7.25219207]
[1773255087714,1.41837018,87.969,87.931,1.46847223]
[1773255088420,7.24136488,87.94,87.902,1.46847223]
[1773255088723,1.41837018,87.972,87.933,1.46847223]
[1773255088908,1.41837018,87.972,87.94,7.24136488]
[1773255089090,1.41837018,87.972,87.94,1.46847223]
[1773255089294,1.41837018,87.972,87.95,7.24136488]
[1773255089797,1.41837018,87.972,87.931,1.46847223]
[1773255090007,1.41837018,87.969,87.93,7.24136488]
[1773255090800,1.41837018,87.967,87.93,7.24136488]
[1773255091004,1.41837018,87.959,87.92,7.24136488]
[1773255091206,1.41837018,87.949,87.912,1.46847223]
[1773255091504,1.41837018,87.949,87.91,7.24136488]
[1773255091699,1.41837018,87.939,87.903,1.46847223]
[1773255092212,1.41837018,87.939,87.9,7.24136488]
[1773255092804,1.41837018,87.929,87.89,7.24136488]
[1773255093309,1.41837018,87.937,87.901,1.46847223]
[1773255093617,1.41837018,87.937,87.9,7.24136488]
[1773255093618,2.9,87.945,87.911,1.46847223]
[1773255093818,1.41837018,87.958,87.93,7.24136488]
[1773255094313,1.41837018,87.958,87.92,8.70983711]
[1773255094906,1.41837018,87.956,87.92,8.70983711]
[1773255095718,2.9,87.978,87.92,8.70983711]
[1773255095719,1.41837018,87.989,87.95,7.24136488]
[1773255095903,1.41837018,87.989,87.95,8.1614175]
[1773255096605,1.41837018,87.989,87.95,7.24136488]
[1773255096806,1.41837018,87.987,87.95,7.24136488]
[1773255097217,1.41837018,87.979,87.94,7.24136488]
[1773255097401,1.41837018,87.969,87.922,0.91951736]
[1773255097817,1.41837018,87.969,87.93,7.24136488]
[1773255099518,11.36777009,87.968,87.94,8.16035921]
[1773255099823,12.78497736,87.977,87.941,0.91899433]
[1773255100123,1.41837018,87.976,87.941,0.91899433]
[1773255100908,1.46915706,88.009,87.97,7.24136488]
[1773255101120,1.46915706,87.999,87.962,0.91848]
[1773255101498,1.46915706,87.997,87.963,11.36841626]
[1773255102323,1.46915706,87.997,87.964,0.91797421]
[1773255104112,1.46915706,87.995,87.955,0.91747998]
[1773255104326,1.46915706,87.995,87.96,7.24136488]
[1773255104823,1.46915706,87.995,87.961,0.91747998]
[1773255106203,28.40703323,88.007,87.962,11.3685455]
[1773255106204,12.83356826,87.994,87.962,11.3685455]
[1773255106409,1.46915706,87.993,87.962,11.3685455]
[1773255107113,1.46915706,88.013,87.98,7.24136488]
[1773255107321,1.46915706,88.009,87.97,7.24136488]
[1773255107629,1.46915706,88.009,87.967,0.30522257]
[1773255107815,1.46915706,87.999,87.963,0.30522257]
[1773255108016,2.9,88.027,87.962,11.3685455]
[1773255108017,28.39988796,88.029,87.981,0.30498798]
[1773255108214,28.39988796,88.029,87.962,39.78990927]
[1773255108215,1.46915706,88.027,87.991,0.30498798]
[1773255108529,1.46915706,88.025,87.981,11.67107838]
[1773255108729,1.46915706,88.019,87.981,11.67107838]
[1773255109428,1.46915706,88.025,87.982,0.30475608]
[1773255110135,1.49666653,88.019,87.982,0.30475608]
[1773255110633,12.85797898,88.018,87.984,0.30430024]
[1773255111511,1.49666653,88.017,87.984,0.30430024]
[1773255112838,11.36157062,88.016,87.985,11.36557367]
[1773255113137,1.49666653,88.028,87.991,0.30364668]
[1773255113309,56.77986875,88.06,88.001,0.30364668]
[1773255113310,11.35886047,88.037,88.001,0.30364668]
[1773255114823,1.49666653,88.036,88.002,11.3633781]
[1773255115325,1.49666653,88.036,88.003,0.30323757]
[1773255115917,11.35911853,88.035,88.003,0.30323757]
[1773255116544,12.85482182,88.043,88.01,7.24136488]
[1773255116717,12.85482182,88.043,88.003,0.30323757]
[1773255116912,7.24136488,88.04,88.005,0.30303653]
[1773255117428,1.49666653,88.039,88.005,0.30303653]
[1773255118915,1.49666653,88.029,88.0,11.36360621]
[1773255119634,1.49666653,88.029,87.998,11.36389463]
[1773255119817,1.49666653,88.029,87.998,11.66634179]
[1773255120017,1.49666653,88.029,87.999,0.3022552]
[1773255120333,1.49666653,88.029,87.99,7.24136488]
[1773255120334,1.49666653,88.009,87.971,0.3022552]
[1773255120632,1.49666653,88.009,87.974,0.3022552]
[1773255120832,1.49666653,88.017,87.976,0.3022552]
[1773255121014,1.49666653,88.017,87.975,11.36686558]
[1773255121015,1.49666653,88.025,87.981,0.3022552]
[1773255121216,7.24136488,88.02,87.982,1.13659612]
[1773255121420,7.24136488,88.02,87.983,0.30206544]
[1773255121724,1.49666653,88.025,87.983,0.30206544]
[1773255121923,1.49666653,88.025,87.985,0.30206544]
[1773255122330,11.3595939,88.032,87.991,0.30187787]
[1773255122526,11.3595939,88.032,87.993,0.30187787]
[1773255122732,11.3595939,88.032,87.995,0.30187787]
[1773255122940,11.3595939,88.032,87.997,0.30187787]
[1773255123142,1.49666653,88.034,88.001,0.30169244]
[1773255123318,1.49666653,88.034,88.003,0.30169244]
[1773255123716,11.35847342,88.04,88.005,0.30169244]
[1773255123921,20.09650483,88.04,88.007,0.30169244]
[1773255124138,1.49666653,88.039,88.007,0.30169244]
[1773255125120,1.49666653,88.037,87.999,0.30132797]
[1773255125324,1.49666653,88.029,87.999,11.36372088]
[1773255125741,11.35873145,88.038,88.001,0.30132797]
[1773255125945,11.35873145,88.038,88.003,0.30132797]
[1773255126122,12.85539798,88.038,88.003,0.30132797]
[1773255126321,1.49666653,88.037,88.003,0.30132797]
[1773255126748,11.35873145,88.038,88.003,0.30132797]
[1773255126749,8.73803141,88.03,88.003,0.30132797]
[1773255127040,1.49666653,88.029,87.999,11.36372088]
[1773255127435,12.85668834,88.028,87.999,11.36372088]
[1773255127633,1.49666653,88.027,87.999,11.36372088]
[1773255128027,1.49666653,88.027,87.997,11.36402377]
[1773255128527,39.76007633,88.028,87.969,1.27892565]
[1773255128528,1.49666653,88.019,87.981,0.3007968]
[1773255128726,1.49666653,88.019,87.982,0.3007968]
[1773255128925,1.49666653,88.027,87.991,0.30062379]
[1773255129131,1.49666653,88.027,87.993,0.30062379]
[1773255129548,1.49666653,88.027,87.995,0.30062379]
[1773255130820,1.49666653,88.027,87.997,0.30045277]
[1773255131241,11.36027991,88.026,87.997,0.30045277]
[1773255131620,11.35983897,88.03,87.997,0.30045277]
[1773255133123,11.35983897,88.03,87.99,7.24136488]
[1773255133124,11.3581076,88.043,88.001,0.29995141]
[1773255133335,11.3581076,88.043,88.011,0.29995141]
[1773255133647,45.37356774,88.158,88.035,4.82477569]
[1773255133824,61.36,88.162,88.101,1.47360499]
[1773255134029,39.70009414,88.161,88.101,1.47360499]
[1773255134237,2.9,88.16,88.075,1.47360499]
[1773255134531,7.24136488,88.13,88.08,7.24136488]
[1773255134732,7.24136488,88.12,88.08,7.24136488]
[1773255134924,7.24136488,88.12,88.075,1.47360499]
[1773255135326,39.71901633,88.119,88.075,1.47360499]
[1773255135525,1.49666653,88.118,88.08,7.24136488]
[1773255136225,1.49666653,88.109,88.066,2.9]
[1773255136927,1.49666653,88.099,88.066,2.9]
[1773255137125,1.49666653,88.099,88.06,7.24136488]
[1773255137436,1.49666653,88.097,88.06,7.24136488]
[1773255138029,1.49666653,88.097,88.05,10.14136488]
[1773255138244,1.49666653,88.097,88.051,11.35705443]
[1773255138548,1.49666653,88.097,88.06,7.24136488]
[1773255138750,1.49666653,88.097,88.06,8.71496987]
[1773255139842,1.49666653,88.095,88.06,8.71496987]
[1773255140050,1.49666653,88.095,88.061,11.35576475]
[1773255140544,1.49666653,88.095,88.061,12.80007064]
[1773255140730,11.35125317,88.096,88.07,7.24136488]
[1773255141543,11.35125317,88.096,88.061,11.35576475]
[1773255141544,1.38382084,88.123,88.09,7.24136488]
[1773255141746,11.34790404,88.122,88.09,7.24136488]
[1773255142040,11.34790404,88.122,88.075,1.44430589]
[1773255142041,1.38382084,88.119,88.075,1.44430589]
[1773255142246,1.38382084,88.119,88.08,7.24136488]
[1773255143227,1.38382084,88.119,88.075,1.44430589]
[1773255143835,1.38382084,88.117,88.072,2.9]
[1773255144166,1.38382084,88.117,88.072,14.25431305]
[1773255144546,1.38382084,88.109,88.065,1.44430589]
[1773255144734,1.38382084,88.109,88.07,7.24136488]
[1773255144935,1.38382084,88.099,88.05,8.68567077]
[1773255145845,1.38382084,88.097,88.06,7.24136488]
[1773255146241,1.38382084,88.097,88.061,1.44430589]
[1773255147447,39.72938611,88.096,88.061,1.44430589]
[1773255147652,39.72938611,88.096,88.063,1.44430589]
[1773255147951,11.35125317,88.096,88.071,1.44430589]
[1773255148150,1.38382084,88.115,88.081,1.44430589]
[1773255148337,11.34893433,88.114,88.09,7.24136488]
[1773255148739,39.72127016,88.114,88.081,1.44430589]
[1773255148939,1.38382084,88.113,88.081,1.44430589]
[1773255149144,1.38382084,88.113,88.08,7.24136488]
[1773255149539,11.34919193,88.112,88.08,20.01382595]
[1773255149738,39.72217177,88.112,88.08,8.6605657]
[1773255150355,39.72217177,88.112,88.081,1.44430589]
[1773255150543,39.72217177,88.112,88.082,1.44430589]
[1773255150948,41.10599261,88.112,88.082,1.44430589]
[1773255151956,41.10599261,88.112,88.09,7.21625981]
[1773255152652,41.10599261,88.112,88.082,1.44430589]
[1773255152653,12.73301277,88.112,88.083,11.35292848]
[1773255152854,12.73301277,88.112,88.081,1.44430589]
[1773255153062,1.38382084,88.111,88.08,7.21625981]
[1773255153248,7.21625981,88.09,88.04,7.21625981]
[1773255153552,1.38382084,88.069,88.03,7.21625981]
[1773255153752,1.38382084,88.091,88.051,1.44430589]
[1773255154758,1.38382084,88.089,88.051,1.44430589]
[1773255154950,1.38382084,88.089,88.041,11.3583444]
[1773255156557,1.38382084,88.089,88.05,7.21625981]
[1773255156755,1.38382084,88.087,88.051,11.35705443]
[1773255157141,1.38382084,88.087,88.05,7.21625981]
[1773255157859,1.38382084,88.079,88.045,11.35779002]
[1773255158062,1.38382084,88.079,88.04,18.57462004]
[1773255158239,1.38382084,88.079,88.05,8.6605657]
[1773255158758,11.35357296,88.078,88.051,11.35705443]
[1773255158943,1.38382084,88.097,88.052,2.57999843]
[1773255159147,1.38382084,88.089,88.045,1.44430589]
[1773255159569,1.38382084,88.089,88.05,7.21625981]
[1773255160961,1.49987743,88.087,88.05,7.21625981]
[1773255161662,1.49987743,88.087,88.052,1.38509295]
[1773255162862,1.49987743,88.085,88.047,11.35749442]
[1773255163478,1.49987743,88.085,88.05,7.21625981]
[1773255163785,1.49987743,88.079,88.039,1.13586024]
[1773255163957,96.49660558,88.086,88.03,8.60135276]
[1773255163958,1.49987743,88.069,88.03,7.21625981]
[1773255164156,1.49987743,88.069,88.021,1.38509295]
[1773255164355,7.21625981,88.06,88.021,1.38509295]
[1773255164561,1.49987743,88.059,88.021,1.38509295]
[1773255164763,1.49987743,88.059,88.024,11.36041828]
[1773255165162,1.49987743,88.057,88.024,1.38509295]
[1773255165481,1.49987743,88.057,88.02,12.49711745]
[1773255165482,1.49987743,88.057,88.021,11.36092523]
[1773255165860,1.49987743,88.049,88.006,1.38509295]
[1773255166078,1.49987743,88.039,87.996,1.38509295]
[1773255166372,1.49987743,88.039,88.0,7.21625981]
[1773255166575,1.49987743,88.039,88.0,8.35262344]
[1773255166866,1.49987743,88.029,87.983,11.36581497]
[1773255167171,1.49987743,88.027,87.99,7.21625981]
[1773255168152,11.35946117,88.033,88.0,7.21625981]
[1773255168362,45.4098067,88.087,88.021,1.38509295]
[1773255168363,12.85615802,88.057,88.021,1.38509295]
[1773255168555,45.4098067,88.087,87.99,7.21625981]
[1773255168556,1.49987743,88.076,88.041,1.38509295]
[1773255168774,1.49987743,88.076,88.05,7.21625981]
[1773255168977,1.49987743,88.074,88.042,1.38509295]
[1773255169185,11.35421752,88.073,88.042,1.38509295]
[1773255169392,1.49987743,88.072,88.042,1.38509295]
[1773255169553,1.49987743,88.072,88.04,7.21625981]
[1773255170482,11.35421752,88.073,88.04,7.21625981]
[1773255170483,1.41951973,88.07,88.042,11.35813127]
[1773255171569,11.35473322,88.069,88.042,11.35813127]
[1773255171982,1.41951973,88.068,88.042,11.35813127]
[1773255172191,1.41951973,88.068,88.031,11.35963467]
[1773255172371,1.41951973,88.068,88.03,7.21625981]
[1773255172572,1.41951973,88.059,88.016,1.50234541]
[1773255172871,7.21625981,88.06,88.012,1.50234541]
[1773255172872,1.41951973,88.057,88.012,1.50234541]
[1773255173681,1.41951973,88.055,88.013,11.36195789]
[1773255173991,1.41951973,88.054,88.013,11.36195789]